[Event "ECo-C Extraliga 2023-24"]
[Site "Slovakia"]
[Date "2024.01.21"]
[Round "6.1"]
[White "Navara, David"]
[Black "Karacsonyi, Gellert"]
[Result "*"]
[ECO "C50"]
[WhiteElo "2679"]
[BlackElo "2398"]
[Annotator "RC"]
[PlyCount "35"]
[EventDate "2023.10.06"]
[EventType "team-tourn"]
[EventCountry "SVK"]
[SourceTitle "playchess.com"]
[Source "ChessBase"]
[SourceQuality "1"]
[TimeControl "40/5400+30:1800+30"]

1. e4 {[%emt 0:00:02]} e5 {[%emt 0:00:08]} 2. Bc4 {[%emt 0:00:04]} Nf6 {[%emt 0:02:58]} 3. d3 {[%emt 0:00:05]} Nc6 {[%emt 0:00:33]} 4. Nf3 {[%emt 0:00:11]} Bc5 {[%emt 0:00:43]} 5. c3 {[%emt 0:01:57]} a5 {[%emt 0:00:31]} 6. O-O {[%emt 0:00:30]} d6 {[%emt 0:00:30]} 7. Re1 {[%emt 0:00:30]} Ba7 {[%emt 0:00:30]} 8. Nbd2 {[%emt 0:00:30]} O-O {[%emt 0:00:30]} 9. Nf1 {[%emt 0:00:30]} Be6 {[%emt 0:00:30]} 10. Bb5 {[%emt 0:00:30]} Ne7 {[%emt 0:00:30]} 11. Ng3 {[%emt 0:00:30]} Ng6 {[%emt 0:00:30]} 12. h3 {[%emt 0:00:30]} d5 {[%emt 0:00:30]} 13. exd5 {[%emt 0:00:30]} Bxd5 {[%emt 0:00:30]} 14. Ba4 {[%emt 0:00:30]} Qd6 {[%emt 0:00:30]} 15. Nf5 {[%emt 0:00:30]} Qe6 {[%emt 0:00:30]} 16. N5d4 {[%emt 0:00:30]} Bxf3 {[%emt 0:00:30]} 17. Nxf3 {[%emt 0:00:30]} Qf5 {[%emt 0:00:30]} 18. Rf1 {[%emt 0:00:26]} *

[Event "ECo-C Extraliga 2023-24"]
[Site "Slovakia"]
[Date "2024.02.24"]
[Round "7"]
[White "Stalmach, Richard"]
[Black "Karacsonyi, Gellert"]
[Result "0-1"]
[ECO "D37"]
[WhiteElo "2433"]
[BlackElo "2398"]
[Annotator "RC"]
[PlyCount "112"]
[EventDate "2023.10.06"]
[EventType "team-tourn"]
[EventCountry "SVK"]
[SourceTitle "playchess.com"]
[Source "ChessBase"]
[SourceQuality "1"]
[TimeControl "40/5400+30:1800+30"]

1. d4 {[%emt 0:00:03]} d5 {[%emt 0:00:16]} 2. c4 {[%emt 0:00:16]} e6 {[%emt 0:00:05]} 3. Nf3 {[%emt 0:01:11]} Nf6 {[%emt 0:00:15]} 4. Nc3 {[%emt 0:00:07]} a6 {[%emt 0:01:14]} 5. cxd5 {[%emt 0:00:29]} exd5 {[%emt 0:00:07]} 6. Qb3 {[%emt 0:00:50]} c6 {[%emt 0:01:03]} 7. Bg5 {[%emt 0:00:47]} Nbd7 {[%emt 0:04:59]} 8. e4 {[%emt 0:25:27]} dxe4 {[%emt 0:03:59]} 9. Bc4 {[%emt 0:00:18]} Qe7 {[%emt 0:05:38]} 10. Ne5 {[%emt 0:00:15]} Nxe5 {[%emt 0:04:54]} 11. dxe5 {[%emt 0:00:05]} b5 {[%emt 0:15:00]} 12. exf6 {[%emt 0:02:16]} gxf6 {[%emt 0:00:22]} 13. Bh4 {[%emt 0:06:23]} bxc4 {[%emt 0:00:43]} 14. Qxc4 {[%emt 0:00:04]} Qe6 {[%emt 0:01:19]} 15. Qd4 {[%emt 0:07:39]} Bg7 {[%emt 0:07:20]} 16. O-O {[%emt 0:01:24]} Qe5 {[%emt 0:04:11]} 17. Qb4 {[%emt 0:06:16]} Rb8 {[%emt 0:17:30]} 18. Qa4 {[%emt 0:05:56]} f5 {[%emt 0:05:27]} 19. Rae1 {[%emt 0:04:40]} Qc5 {[%emt 0:04:57]} 20. Rxe4+ {[%emt 0:14:01]} fxe4 {[%emt 0:10:05]} 21. Nxe4 {[%emt 0:00:05]} Qb6 {[%emt 0:00:05]} 22. Nd6+ {[%emt 0:04:48]} Kf8 {[%emt 0:00:02]} 23. Re1 {[%emt 0:01:08]} Be6 {[%emt 0:07:10]} 24. Rxe6 {[%emt 0:00:05]} Qxb2 {[%emt 0:00:06]} 25. Re1 {[%emt 0:01:10]} Qe5 {[%emt 0:04:10]} 26. Qd1 {[%emt 0:02:46]} Qd5 {[%emt 0:00:50]} 27. Qe2 {[%emt 0:04:07]} Kg8 {[%emt 0:00:21]} 28. Ne8 {[%emt 0:01:06]} Qe6 {[%emt 0:00:52]} 29. Qd2 {[%emt 0:03:08]} Qd5 {[%emt 0:00:02]} 30. Qe2 {[%emt 0:02:53]} Qe6 {[%emt 0:00:01]} 31. Qd1 {[%emt 0:00:25]} Qg6 {[%emt 0:02:15]} 32. Bg3 {[%emt 0:01:25]} Rb5 {[%emt 0:00:22]} 33. Qd8 {[%emt 0:01:47]} Bc3 {[%emt 0:00:39]} 34. Rd1 {[%emt 0:03:13]} h5 {[%emt 0:00:02]} 35. h4 {[%emt 0:00:51]} Kh7 {[%emt 0:00:01]} 36. Qe7 {[%emt 0:00:05]} Rd5 {[%emt 0:01:15]} 37. Rc1 {[%emt 0:00:38]} Rd3 {[%emt 0:00:35]} 38. Nd6 {[%emt 0:00:49]} Bf6 {[%emt 0:00:20]} 39. Qe2 {[%emt 0:00:16]} Rxg3 {[%emt 0:00:38]} 40. fxg3 {[%emt 0:00:09]} Bd4+ {[%emt 0:00:01]} 41. Kh2 {[%emt 0:02:00]} Qxd6 {[%emt 0:00:27]} 42. Qxh5+ {[%emt 0:02:36]} Kg8 {[%emt 0:01:42]} 43. Qg4+ {[%emt 0:01:58]} Bg7 {[%emt 0:08:17]} 44. Qc8+ {[%emt 0:00:06]} Bf8 {[%emt 0:00:19]} 45. Qg4+ {[%emt 0:00:05]} Kh7 {[%emt 0:00:50]} 46. Qh5+ {[%emt 0:09:54]} Kg7 {[%emt 0:00:32]} 47. Qg4+ {[%emt 0:00:32]} Qg6 {[%emt 0:00:57]} 48. Qxg6+ {[%emt 0:00:04]} fxg6 {[%emt 0:00:06]} 49. Rxc6 {[%emt 0:00:02]} a5 {[%emt 0:00:08]} 50. Rc7+ {[%emt 0:00:03]} Kf6 {[%emt 0:00:21]} 51. Rc8 {[%emt 0:04:08]} Kf7 {[%emt 0:02:34]} 52. Rc7+ {[%emt 0:03:03]} Be7 {[%emt 0:00:49]} 53. Ra7 {[%emt 0:00:04]} Rh5 {[%emt 0:00:04]} 54. g4 {[%emt 0:00:03]} Rd5 {[%emt 0:00:34]} 55. Kg3 {[%emt 0:05:06]} Ke6 {[%emt 0:01:37]} 56. Kf4 {[%emt 0:02:14]} Bxh4 {[%emt 0:02:10]} 0-1

[Event "ECo-C Extraliga 2023-24"]
[Site "Slovakia"]
[Date "2024.02.24"]
[Round "7"]
[White "Zylka, Stanislaw"]
[Black "Borosova, Zuzana"]
[Result "1-0"]
[ECO "B30"]
[WhiteElo "2411"]
[BlackElo "2215"]
[Annotator "TA"]
[PlyCount "77"]
[EventDate "2023.10.06"]
[EventType "team-tourn"]
[EventCountry "SVK"]
[SourceTitle "playchess.com"]
[Source "ChessBase"]
[SourceQuality "1"]
[TimeControl "40/5400+30:1800+30"]

{[%evp 11,77,44,27,31,33,0,24,0,22,14,23,33,22,0,10,21,28,7,6,-39,0,0,0,-1,0,-15,0,8,80,84,123,118,147,12,0,18,27,0,0,0,9,2,12,0,0,0,0,0,72,60,133,145,190,190,428,436,583,585,570,582,693,678,648,605,622,575,1193,1178]} 1. e4 {[%emt 0:00:04]} c5 {[%emt 0:01:06]} 2. Nf3 {[%emt 0:03:00]} Nc6 {[%emt 0:00:14]} 3. Bb5 {[%emt 0:00:13]} d6 {[%emt 0:00:31]} 4. O-O {[%emt 0:00:17]} Bd7 {[%emt 0:00:21]} 5. Re1 {[%emt 0:00:30]} a6 {[%emt 0:00:44]} 6. Bxc6 {[%emt 0:01:51]} Bxc6 {[%emt 0:03:31]} 7. d4 {[%emt 0:00:24]} cxd4 {[%emt 0:02:52]} 8. Qxd4 {[%emt 0:01:20]} Nf6 {[%emt 0:20:15]} 9. Bg5 {[%emt 0:16:57] White has an edge.} Nd7 {[%emt 0:27:31]} 10. Nc3 {[%emt 0:00:52]} h6 {[%emt 0:16:22]} 11. Bh4 {[%emt 0:06:40]} Qb6 {[%emt 0:00:41]} 12. Qd2 {[%emt 0:02:45]} e5 {[%emt 0:10:59]} (12... g5 $5 13. Bg3 $8 Bg7 $11) 13. Rab1 {[%emt 0:15:56]} g5 {[%emt 0:01:48]} 14. Bg3 {[%emt 0:00:07]} Be7 {[%emt 0:00:40]} 15. b4 {[%emt 0:02:13]} Qc7 {[%emt 0:04:02]} 16. a4 $1 {[%emt 0:02:56] Hoping for b5.} b6 {[%emt 0:01:57]} 17. h3 {[%emt 0:24:28]} Rc8 {[%emt 0:01:01][%cal Of7f5]} 18. Nh2 {[%emt 0:00:33]} Bb7 {[%emt 0:01:02]} 19. Rb3 {[%emt 0:00:10]} Qc4 {[%emt 0:01:42]} (19... Nf6 $11) 20. Nf1 $16 {[%emt 0:02:33]} Nf6 {[%emt 0:01:29]} 21. f3 {[%emt 0:01:21]} (21. Ne3 $6 Qd4 22. Qxd4 exd4 $11) 21... Qd4+ {[%emt 0:01:28]} 22. Bf2 {[%emt 0:00:07]} (22. Qxd4 $16 exd4 23. Ne2) 22... Qxd2 $11 {[%emt 0:00:10]} 23. Nxd2 {[%emt 0:00:03][%cal Ob4b5]} Nd7 {[%emt 0:00:50][%cal Of7f5]} 24. Nf1 {[%emt 0:00:47]} f5 $1 {[%emt 0:00:37]} 25. exf5 {[%emt 0:06:09] Threatening Rd1.} d5 {[%emt 0:00:25][%cal Bd6d5,Bd5d4][%mdl 32]} 26. Re2 {[%emt 0:00:12]} Kf7 {[%emt 0:00:22]} 27. Rd2 $36 {[%emt 0:02:34][%mdl 2048] White has the initiative.} d4 {[%emt 0:00:28][%cal Ob7c6]} 28. Ne2 {[%emt 0:01:34]} Bd5 {[%emt 0:00:30]} 29. Rb1 {[%emt 0:00:41][%cal Oc2c3]} Nf6 {[%emt 0:00:45] [#]} (29... Ba2 $11 {remains equal.} 30. Rbd1 Rhd8 (30... Bxb4 31. c3 $16)) 30. Bg3 $1 $16 {[%emt 0:00:38]} Nd7 {[%emt 0:00:34] [#]} ({Avoid the trap} 30... Ba2 $2 31. Rb2 $16) (30... e4 $1 $14) 31. c3 $1 {[%emt 0:00:30][%mdl 512]} Bc4 {[%emt 0:00:29]} (31... e4 32. Rxd4) 32. cxd4 {[%emt 0:00:13]} Bxe2 $2 {[%emt 0:00:12]} (32... exd4 {was called for.} 33. Nxd4 Nf6) 33. dxe5 $18 {[%emt 0:00:31] Black must now prevent e6+. White is clearly winning.} (33. Rxe2 exd4 34. Bf2 d3 $18) 33... Bxf1 {[%emt 0:00:44] [#]} 34. e6+ $1 {[%emt 0:00:32]} ({Not} 34. Rxf1 Nb8 $16) ({Weaker is} 34. Rxd7 Ke8 $16) (34. Kxf1 Nb8 35. b5 axb5 $16) 34... Kf6 {[%emt 0:00:21]} 35. exd7 {[%emt 0:00:10]} Bc4 {[%emt 0:00:41]} 36. dxc8=Q {[%emt 0:00:14]} Rxc8 {[%emt 0:00:05]} 37. Rd7 {[%emt 0:00:36]} b5 {[%emt 0:00:52]} 38. Bf2 {[%emt 0:00:33]} Bf8 {[%emt 0:00:31]} 39. g4 {[%emt 0:00:15] Weighted Error Value: White=0.16 (very precise) /Black=0.40.  Mistake:       	White=1     	Black=4      Inaccurate:     	White=1     	Black=4      OK:         	White=9     	Black=9      Best:        	White=3     	Black=2      Strong:       	White=3     	Black=1      Brilliant:      	White=1     	---} 1-0

[Event "ECo-C Extraliga 2023-24"]
[Site "Slovakia"]
[Date "2024.02.24"]
[Round "7"]
[White "Jurcik, Martin"]
[Black "Kukel, Imre"]
[Result "1-0"]
[ECO "B70"]
[WhiteElo "2359"]
[BlackElo "2271"]
[Annotator "ChessBase"]
[PlyCount "61"]
[EventDate "2023.10.06"]
[EventType "team-tourn"]
[EventCountry "SVK"]
[SourceTitle "playchess.com"]
[Source "ChessBase"]
[SourceQuality "1"]
[TimeControl "40/5400+30:1800+30"]

1. e4 {[%emt 0:00:05]} c5 {[%emt 0:00:09]} 2. Nf3 {[%emt 0:00:19]} d6 {[%emt 0:00:03]} 3. d4 {[%emt 0:00:20]} cxd4 {[%emt 0:00:04]} 4. Nxd4 {[%emt 0:00:06]} Nf6 {[%emt 0:00:03]} 5. Nc3 {[%emt 0:00:14]} g6 {[%emt 0:00:04]} 6. Be2 {[%emt 0:02:30]} Bg7 {[%emt 0:00:05]} 7. O-O {[%emt 0:00:50]} Nc6 {[%emt 0:00:43]} 8. Nb3 {[%emt 0:01:21]} O-O {[%emt 0:03:28]} 9. Bg5 {[%emt 0:00:56]} h6 {[%emt 0:29:56]} 10. Bh4 {[%emt 0:00:35]} Be6 {[%emt 0:05:47]} 11. f4 {[%emt 0:03:46]} b5 {[%emt 0:04:48]} 12. Bf3 {[%emt 0:15:48]} Rc8 {[%emt 0:07:14]} 13. Bf2 {[%emt 0:17:46]} a6 {[%emt 0:09:47]} 14. Nd5 {[%emt 0:07:32]} Nd7 {[%emt 0:00:30]} 15. c3 {[%emt 0:03:39]} b4 {[%emt 0:01:46]} 16. cxb4 {[%emt 0:05:54]} Bxb2 {[%emt 0:00:12]} 17. Rb1 {[%emt 0:00:21]} Bg7 {[%emt 0:02:14]} 18. a3 {[%emt 0:01:00]} Kh8 {[%emt 0:04:37]} 19. Qe2 {[%emt 0:02:30]} Ncb8 {[%emt 0:07:21]} 20. Na5 {[%emt 0:04:54]} Nc5 {[%emt 0:03:26]} 21. Bxc5 {[%emt 0:13:01]} dxc5 {[%emt 0:01:54]} 22. Nb7 {[%emt 0:00:42]} Qd7 {[%emt 0:03:51]} 23. Nxc5 {[%emt 0:04:35]} Bd4+ {[%emt 0:01:09]} 24. Kh1 {[%emt 0:00:01]} Bxc5 {[%emt 0:00:46]} 25. bxc5 {[%emt 0:00:02]} Rxc5 {[%emt 0:00:12]} 26. Qe3 {[%emt 0:01:33]} Rc4 {[%emt 0:04:27]} 27. Nb6 {[%emt 0:01:05]} Qd4 {[%emt 0:00:00]} 28. Nxc4 {[%emt 0:00:16]} Qxc4 {[%emt 0:00:01]} 29. f5 {[%emt 0:00:41]} gxf5 {[%emt 0:00:03]} 30. exf5 {[%emt 0:00:45]} Bxf5 {[%emt 0:00:01]} 31. Qe5+ {[%emt 0:00:13]} 1-0

[Event "ECo-C Extraliga 2023-24"]
[Site "Slovakia"]
[Date "2024.02.24"]
[Round "7"]
[White "Jakab, Bela"]
[Black "Piesik, Piotr"]
[Result "1/2-1/2"]
[ECO "C15"]
[WhiteElo "2346"]
[BlackElo "2421"]
[Annotator "TA"]
[PlyCount "123"]
[EventDate "2023.10.06"]
[EventType "team-tourn"]
[EventCountry "SVK"]
[SourceTitle "playchess.com"]
[Source "ChessBase"]
[SourceQuality "1"]
[TimeControl "40/5400+30:1800+30"]

{[%evp 43,123,0,0,0,0,-23,-20,-24,-30,-19,-25,-45,-35,-52,-21,-47,-50,-54,-47,-57,-54,-50,-45,-125,-23,-18,-40,-53,-51,-35,-17,-175,-175,-135,-143,-215,-230,-284,-273,-312,-315,-315,-315,-247,0,-310,-305,-262,-244,-500,-314,-274,-186,-279,-210,-504,-472,-1000,-1000,-906,-591,-878,-845,-833,-8,-8,-8,-8,-8,-8,-8,-8,-8,-8,-8,-8,-8,-8,-8,-8,-8,-8]} 1. e4 {[%emt 0:00:03]} e6 {[%emt 0:00:34]} 2. d4 {[%emt 0:02:08]} d5 {[%emt 0:00:04]} 3. Nc3 {[%emt 0:00:15]} Bb4 {[%emt 0:00:19]} 4. exd5 {[%emt 0:00:39]} exd5 {[%emt 0:00:06]} 5. Bd3 {[%emt 0:00:11]} Nc6 {[%emt 0:02:57]} 6. Nge2 {[%emt 0:00:27]} Nge7 {[%emt 0:01:14]} 7. Bf4 {[%emt 0:02:25]} Bf5 {[%emt 0:05:12]} 8. O-O {[%emt 0:01:51]} Qd7 {[%emt 0:09:55] C01: French: Exchange Variation.} 9. Nb5 {[%emt 0:23:21]} Ba5 {[%emt 0:04:21]} 10. c3 {[%emt 0:01:54]} a6 {[%emt 0:06:14]} 11. Na3 {[%emt 0:00:15]} O-O {[%emt 0:00:17]} 12. Nc2 {[%emt 0:02:02]} Ng6 $146 {[%emt 0:04:05]} ({Predecessor:} 12... Rfe8 13. Ne3 Bg6 14. Bg3 Nf5 15. Nxf5 Bxf5 16. Re1 Ne7 17. Nf4 c6 18. Qc2 Bc7 19. Bxf5 Nxf5 {½-½ Maksimovic,B (2497)-Papasimakopoulos,A (2392) EU-ch Blitz Zagreb 2023 (4)}) 13. Ne3 {[%emt 0:08:09]} Bxd3 {[%emt 0:00:15]} 14. Qxd3 {[%emt 0:00:03]} Nce7 {[%emt 0:03:31]} 15. h3 {[%emt 0:05:52]} c6 {[%emt 0:05:28]} 16. Rae1 {[%emt 0:03:14]} f5 {[%emt 0:08:25]} 17. g3 {[%emt 0:23:54]} Rae8 {[%emt 0:16:00]} 18. Ng2 {[%emt 0:00:19]} Nc8 {[%emt 0:01:52]} 19. Nc1 {[%emt 0:06:16]} Nxf4 {[%emt 0:03:03]} 20. Nxf4 {[%emt 0:00:30]} Bc7 {[%emt 0:00:30]} 21. Rxe8 {[%emt 0:01:10]} Rxe8 {[%emt 0:00:22]} 22. Ng2 {[%emt 0:00:28]} Nd6 {[%emt 0:02:24]} 23. Re1 {[%emt 0:03:22]} Re4 {[%emt 0:04:48]} 24. Kh2 {[%emt 0:02:35]} f4 {[%emt 0:05:39]} 25. gxf4 {[%emt 0:02:35]} Rxe1 $1 {[%emt 0:01:03]} 26. Nxe1 {[%emt 0:00:02]} Nc4 {[%emt 0:02:51]} 27. Qg3 {[%emt 0:00:45]} Nxb2 {[%emt 0:01:52]} 28. Ned3 {[%emt 0:00:03]} Nc4 {[%emt 0:00:37]} (28... Qf5 $5) 29. Ne5 {[%emt 0:01:16]} Qf5 {[%emt 0:00:20]} 30. Qg4 {[%emt 0:01:46]} Nd6 {[%emt 0:02:33]} (30... Qxg4 {simplifies} 31. hxg4 Nd2 32. Ne2 g6) 31. Ne2 {[%emt 0:00:34]} Qxg4 {[%emt 0:01:02]} 32. hxg4 {[%emt 0:00:01]} Ba5 {[%emt 0:00:53]} 33. Kg2 {[%emt 0:00:48]} (33. f5 $1 $15) 33... Ne4 {[%emt 0:01:04]} ({Black should play} 33... g6 $1 $17 34. g5 Ne4) 34. c4 $11 {[%emt 0:00:28]} Nc3 {[%emt 0:00:08]} 35. Nxc3 {[%emt 0:02:22]} Bxc3 {[%emt 0:00:07]} 36. cxd5 {[%emt 0:00:15]} cxd5 {[%emt 0:00:04]} 37. Nf3 $2 {[%emt 0:00:48]} (37. f5 $1 $11) 37... g6 $19 {[%emt 0:01:07]} 38. Kf1 {[%emt 0:02:29]} h5 {[%emt 0:01:31]} 39. g5 {[%emt 0:00:59]} (39. Nh4 $17 {was worth a try.}) 39... Kf7 $19 {[%emt 0:00:35]} 40. Ke2 {[%emt 0:00:07]} b5 {[%emt 0:00:32]} 41. Kd3 {[%emt 0:07:22]} Bb4 {[%emt 0:00:54]} 42. Ne5+ {[%emt 0:06:58]} Kg7 {[%emt 0:06:33]} 43. Nd7 {[%emt 0:01:36]} Kf7 {[%emt 0:00:45]} 44. Ne5+ {[%emt 0:03:49] [#]} Ke6 $1 {[%emt 0:20:38]} (44... Kg7 45. Nf3 $19) 45. Nxg6 {[%emt 0:04:53]} Kf5 {[%emt 0:00:04]} 46. Ne5 $2 {[%emt 0:00:04]} (46. Nh4+ Kxf4 47. g6) 46... Kxf4 {[%emt 0:00:42]} 47. g6 {[%emt 0:00:04]} Bf8 {[%emt 0:00:04]} 48. Ke2 {[%emt 0:06:28]} (48. Nd7 $142 Bg7 49. Ke2) 48... a5 49. Nc6 $2 {[%emt 0:02:37] [#]} (49. Nd7 Bh6 (49... Bg7 50. Nb6 $17) 50. Nf6) 49... a4 $1 $19 {[%emt 0:04:05]} 50. f3 {[%emt 0:02:11]} (50. Nb4 $142 Ke4 (50... Bxb4 $2 {too greedy.} 51. g7 $18) 51. Na6) 50... Kf5 $19 {[%emt 0:01:26]} 51. Nb4 {[%emt 0:00:09]} Ke6 {[%emt 0:00:14]} (51... Bxb4 $2 52. g7 Bc3 53. g8=Q $18 (53. g8=R b4 $14)) 52. Nd3 {[%emt 0:00:05]} Bd6 {[%emt 0:01:33]} 53. f4 {[%emt 0:00:11]} b4 $2 {[%emt 0:02:19]} (53... Kf6 $19 54. f5 b4 (54... Kxf5 $2 {is the wrong capture.} 55. g7 $18)) 54. Nc5+ $1 $11 {[%emt 0:00:52]} Kf6 {[%emt 0:02:10]} 55. Nxa4 {[%emt 0:00:21]} Kxg6 {[%emt 0:00:13]} 56. Nb6 {[%emt 0:00:23]} Kf5 {[%emt 0:00:28]} 57. Kf3 {[%emt 0:00:40]} Ke6 {[%emt 0:01:02]} 58. f5+ {[%emt 0:00:09]} Kxf5 {[%emt 0:00:05]} 59. Nxd5 {[%emt 0:00:03]} h4 {[%emt 0:00:10]} 60. Ne3+ {[%emt 0:00:37]} Ke6 {[%emt 0:00:18]} 61. Kg4 {[%emt 0:01:15]} Be7 {[%emt 0:00:33]} 62. Nc2 {[%emt 0:01:43]} 1/2-1/2

[Event "ECo-C Extraliga 2023-24"]
[Site "Slovakia"]
[Date "2024.02.24"]
[Round "7"]
[White "Terbe, Julianna"]
[Black "Jurcik, Marian"]
[Result "1/2-1/2"]
[ECO "D02"]
[WhiteElo "2315"]
[BlackElo "2404"]
[Annotator "TA"]
[PlyCount "208"]
[EventDate "2023.10.06"]
[EventType "team-tourn"]
[EventCountry "SVK"]
[SourceTitle "playchess.com"]
[Source "ChessBase"]
[SourceQuality "1"]
[TimeControl "40/5400+30:1800+30"]

{[%evp 107,208,-238,-227,-268,-213,-238,-221,-206,-52,-52,-52,-52,-52,-52,0,-52,0,-60,-60,-60,-60,-60,-60,-60,-60,-60,0,0,0,-67,0,0,0,0,0,-10,0,0,0,0,0,0,0,0,0,0,0,0,8,8,32,0,0,0,0,0,0,0,8,8,8,8,8,8,8,7,18,18,18,18,18,18,18,8,8,15,18,0,8,8,8,8,200,200,179,0,0,0,0,0,0,0,0,0,0,0,0,0,0,0,0,0,0]} 1. d4 {[%emt 0:00:04]} d5 {[%emt 0:00:38]} 2. Nf3 {[%emt 0:00:34]} Nf6 {[%emt 0:01:04]} 3. g3 {[%emt 0:00:23]} b5 {[%emt 0:02:28]} 4. Bg2 {[%emt 0:00:14]} e6 {[%emt 0:00:21]} 5. O-O {[%emt 0:01:01]} Be7 {[%emt 0:01:52]} 6. a4 {[%emt 0:00:06]} b4 {[%emt 0:00:05]} 7. c4 {[%emt 0:00:04]} bxc3 {[%emt 0:00:56]} 8. Nxc3 {[%emt 0:00:06]} O-O {[%emt 0:00:52]} 9. Bf4 {[%emt 0:00:07]} Ba6 {[%emt 0:09:15]} 10. Re1 {[%emt 0:05:12]} c6 {[%emt 0:03:52]} 11. Qc2 {[%emt 0:15:44]} Nbd7 {[%emt 0:03:06]} 12. Rab1 {[%emt 0:17:34]} Qa5 {[%emt 0:05:17]} 13. e4 {[%emt 0:09:38]} Rfc8 {[%emt 0:03:38]} 14. e5 {[%emt 0:04:20]} Ne8 {[%emt 0:00:35]} 15. Ng5 {[%emt 0:00:28]} Nf8 {[%emt 0:04:25]} 16. Qd1 {[%emt 0:04:04]} Rab8 {[%emt 0:13:04]} 17. Qf3 {[%emt 0:08:21]} Rb7 {[%emt 0:06:38]} 18. Bd2 {[%emt 0:02:46]} Bb4 {[%emt 0:01:38]} 19. h4 {[%emt 0:01:56]} c5 {[%emt 0:02:19]} 20. dxc5 {[%emt 0:05:39]} Rxc5 {[%emt 0:02:35]} 21. Be3 {[%emt 0:02:22]} Rcc7 {[%emt 0:07:37]} 22. Bd4 {[%emt 0:01:42]} Bc5 {[%emt 0:02:14]} 23. Bxc5 {[%emt 0:02:19]} Qxc5 {[%emt 0:00:30]} 24. Bf1 {[%emt 0:04:47]} Bxf1 {[%emt 0:01:00]} 25. Kxf1 {[%emt 0:00:08]} a6 {[%emt 0:02:23]} 26. Qd3 {[%emt 0:02:24]} Qc4 {[%emt 0:01:01]} 27. Red1 {[%emt 0:01:16]} Nd7 {[%emt 0:01:45]} 28. Nf3 {[%emt 0:02:23]} Qxd3+ {[%emt 0:02:13]} 29. Rxd3 {[%emt 0:00:02]} Rc4 {[%emt 0:00:53]} 30. b3 {[%emt 0:04:51]} Rcb4 {[%emt 0:01:13]} 31. Ne2 {[%emt 0:01:34]} Rxa4 {[%emt 0:07:29]} 32. Rc1 {[%emt 0:00:07]} Rab4 {[%emt 0:01:14]} 33. Ned4 {[%emt 0:00:25]} Rc7 {[%emt 0:04:08]} 34. Rxc7 {[%emt 0:01:20]} Nxc7 {[%emt 0:00:04]} 35. Rc3 {[%emt 0:00:09]} Rb7 {[%emt 0:01:41]} 36. Rc6 {[%emt 0:02:12]} h6 {[%emt 0:02:00]} 37. Rd6 {[%emt 0:01:42]} Nb5 {[%emt 0:02:04]} 38. Nxb5 {[%emt 0:00:37]} axb5 {[%emt 0:00:01]} 39. b4 {[%emt 0:00:31]} Kf8 {[%emt 0:02:39]} 40. Ra6 {[%emt 0:00:41]} g6 {[%emt 0:02:38]} 41. Ke2 {[%emt 0:06:44]} Rc7 {[%emt 0:13:25]} 42. Ra5 {[%emt 0:03:27]} Rc2+ {[%emt 0:03:14]} 43. Kf1 {[%emt 0:06:49]} Rc1+ {[%emt 0:05:43]} 44. Ke2 {[%emt 0:01:12]} Rc2+ {[%emt 0:03:15]} 45. Kf1 {[%emt 0:00:09]} Rc4 {[%emt 0:00:04]} 46. Rxb5 {[%emt 0:00:04]} Re4 {[%emt 0:00:08]} 47. Rb7 {[%emt 0:02:21]} Nxe5 {[%emt 0:00:22]} 48. Nxe5 {[%emt 0:00:23]} Rxe5 {[%emt 0:00:02]} 49. b5 {[%emt 0:00:10]} Re4 {[%emt 0:02:00]} 50. b6 {[%emt 0:00:41]} Rb4 {[%emt 0:00:08]} 51. Ke2 {[%emt 0:01:05]} Kg7 {[%emt 0:05:34]} 52. Kd3 {[%emt 0:00:35]} g5 {[%emt 0:02:03]} 53. h5 {[%emt 0:05:41]} g4 {[%emt 0:00:55]} 54. Rb8 {[%emt 0:02:03]} Kf6 {[%emt 0:00:31]} 55. Rg8 {[%emt 0:04:35]} Rb3+ {[%emt 0:00:39]} 56. Ke2 {[%emt 0:00:24]} Kf5 {[%emt 0:00:28]} ({Resist} 56... Rxb6 57. Rxg4 e5 58. Rg8) 57. Rg7 {[%emt 0:00:07]} f6 $2 {[%emt 0:00:26]} (57... Rxb6 $19 58. Rxf7+ Kg5 59. Rg7+ Kxh5) 58. b7 $15 {[%emt 0:00:05]} e5 {[%emt 0:00:26]} 59. Kd2 {[%emt 0:00:26]} Rb6 {[%emt 0:00:39]} 60. Kd3 {[%emt 0:00:59]} Rb3+ {[%emt 0:00:23]} (60... Ke6 $15) 61. Kc2 {[%emt 0:00:04]} (61. Kd2 $1 $11) 61... Rb6 {[%emt 0:00:16]} 62. Kd3 $1 {[%emt 0:00:03]} Ke6 {[%emt 0:00:35]} 63. Rc7 {[%emt 0:01:39]} Rb3+ {[%emt 0:00:39]} 64. Kc2 {[%emt 0:00:03]} Rb5 {[%emt 0:00:11]} 65. Kd3 {[%emt 0:00:16]} Kf5 $1 66. Rg7 Rb4 67. Kc3 $1 Rb6 68. Kd3 $1 Ke6 (68... d4 $15) 69. Rc7 $1 $11 Rb1 70. Kc2 $1 Rb5 71. Kd3 $1 Kd6 72. Rf7 Kc5 73. Rc7+ Kb4 ({Don't play} 73... Kd6 74. Rg7 $15) 74. Rc1 Ka3 $1 75. Rc5 Rxb7 76. Rxd5 Rb2 77. Ke3 Rb6 78. Rd8 f5 79. Rg8 Rb3+ 80. Ke2 Rb2+ 81. Kf1 Kb4 82. Rf8 Kc4 83. Rxf5 Kd4 84. Rf6 Ke4 85. Rxh6 Kf5 86. Rd6 Rb7 87. h6 Ra7 88. Ke2 Ra2+ 89. Rd2 Ra7 $1 90. Rd1 Ra2+ 91. Ke3 Ra3+ 92. Ke2 Ra2+ 93. Kd3 Ra3+ 94. Kc4 Ra8 $2 (94... Ra4+ $11 {and Black is okay.} 95. Kc3 Kg6) 95. Rh1 Ke4 {[#]} 96. Re1+ $2 ({Only move:} 96. Rh5 $1 $18) 96... Kf3 $11 97. Rxe5 Kxf2 98. h7 Kxg3 99. Kd4 Kf4 100. Re4+ Kf3 101. Re7 g3 102. Rf7+ Ke2 103. Rg7 Rh8 104. Rxg3 Rxh7 1/2-1/2